Cogmind - Beta 13 @@@ ROGUE MODE // 2024.04.05 @ 12:08:48 Player: Dumant Result: Destroyed by G-47 Trooper with Particle Gun Performance ------------- Evolutions (2) 1000 Regions Visited (4) 800 Robots Destroyed (53) 265 Value Destroyed (1734) 1734 Prototype IDs (0) 0 Alien Tech Used (0) 0 Bonus (-135) -135 TOTAL SCORE: 3664 Bonus ------- High Alert Combat Kills 26 Friendly Fire -161 Cogmind --------- Core Integrity 0/550 Matter 58/300 Energy 160/160 System Corruption 0% Temperature Cool (9) Movement Walking (190) Ox1 Location -8/Materials Parts ------- > --- POWER (1) -------- Light Nuclear Core > --- PROPULSION (3) --- Improved Carbon-fiber Leg Wheel > --- UTILITY (4) ------ Large Storage Unit Improved Signal Interpreter > --- WEAPON (3) ------- Pulse Rifle Assault Cannon > --- INVENTORY (15) --- Light Angular Momentum Engine Small Battery (100) Experimental Sensor Array Katana Peak State ------------ > --- POWER ------------ Ion Engine > --- PROPULSION ------- Improved Aluminum Leg Carbon-fiber Leg Myomer Leg > --- UTILITY ---------- Heat Sink Large Storage Unit Small Battery Improved Signal Interpreter > --- WEAPON ----------- Assault Cannon Assault Cannon Rocket Launcher > --- INVENTORY -------- Light Ion Engine Light Angular Momentum Engine Small Battery Experimental Sensor Array Recoil Stabilizer Particle Gun Particle Gun Battle Cannon Assault Cannon Katana [Rating: 30] Favorites ----------- Power Light Ion Engine Engine Light Ion Engine Power Core Light Nuclear Core Propulsion Light Treads Treads Light Treads Leg Carbon-fiber Leg Wheel Wheel Utility Small Storage Unit Device Heat Sink Storage Small Storage Unit Processor Signal Interpreter Protection Scrap Shield Weapon Light Assault Rifle Energy Gun Particle Gun Ballistic Gun Light Assault Rifle Ballistic Cannon Flak Cannon Launcher Rocket Launcher Slashing Weapon Katana Build | -11 -10 -10 -10 -8 ------- Run | Yrd Mat Min Sub Mat Slots Evolved 4 | . . . . 4 Power . | . . . . . Propulsion 1 | . . . . 1 Utility 2 | . . . . 2 Weapon 1 | . . . . 1 Parts Attached 45 | 6 2 4 9 24 Power 4 | 1 . . 1 2 Engine 3 | 1 . . 1 1 Core 1 | . . . . 1 Reactor . | . . . . . Propulsion 8 | 2 . . 3 3 Treads 2 | 2 . . . . Leg 5 | . . . 3 2 Wheel 1 | . . . . 1 Hover . | . . . . . Flight . | . . . . . Utility 10 | 1 1 . 1 7 Device 3 | . . . . 3 Storage 4 | 1 . . . 3 Processor 2 | . 1 . . 1 Hackware . | . . . . . Protection 1 | . . . 1 . Artifact . | . . . . . Weapon 23 | 2 1 4 4 12 Energy Gun 5 | . . . . 5 Energy Cannon . | . . . . . Ballistic Gun 2 | 2 . . . . Ballistic Cannon 10 | . . 3 2 5 Launcher 5 | . 1 1 2 1 Special Weapon . | . . . . . Impact Weapon . | . . . . . Slashing Weapon 1 | . . . . 1 Piercing Weapon . | . . . . . Special Melee Weapon . | . . . . . Unidentified Prototypes . | . . . . . Parts Lost 18 | . . . 2 16 Power 3 | . . . 1 2 Propulsion 3 | . . . 1 2 Utility 4 | . . . . 4 Weapon 8 | . . . . 8 Highest Loss Streak 13 | . . . 2 13 To Critical Strikes . | . . . . . Average Slot Usage (%) 92 | . 95 100 87 76 Engine 12 | . 14 14 14 6 Treads 17 | . 28 28 3 . Leg 8 | . . . 23 16 Device 1 | . . . . 9 Storage 11 | . 14 14 3 14 Processor 8 | . 9 14 3 5 Protection 2 | . . . 10 . Ballistic Gun 7 | . 24 5 . . Ballistic Cannon 15 | . . 16 27 12 Launcher 4 | . 3 5 . 6 Naked Turns . | . . . . . Heaviest Build 41 | 10 13 18 33 41 Greatest Support 53 | 40 40 40 40 53 Greatest Overweight (x) 9 | 1 . . 6 9 Average Overweight (x) . | . . . . . Largest Inventory Capacity 15 | 8 8 8 8 15 Average Capacity 8 | 7 8 8 5 12 Most Carried 11 | 4 8 8 8 11 Average Carried 6 | 1 5 7 4 5 Final Capacity 15 | 8 8 8 5 15 Final Carried 8 | 4 8 8 4 4 Class Distribution -------------------- 86% | Mutant 7% | Scavenger-Gunner 3% | Scavenger-Mutant Dominant Class ---------------- Mutant | -10/Materials Mutant | -10/Mines Mutant | -10/Subcaves Scavenger-Gunner | -8/Materials Resources | -11 -10 -10 -10 -8 ----------- Run | Yrd Mat Min Sub Mat Matter Collected 1631 | 237 106 321 570 397 Remotely . | . . . . . Salvage Created 1284 | . 345 195 255 489 Parts 83 | . 13 18 16 36 Haulers Intercepted . | . . . . . Recyclers Shooed 2 | . 1 1 . . Parts Field Recycled . | . . . . . Retrieved Matter . | . . . . . Parts Self-Destructed 18 | . . . 18 . Prevented . | . . . . . Kills | -11 -10 -10 -10 -8 ------- Run | Yrd Mat Min Sub Mat Combat Hostiles Destroyed 45 | . 4 10 13 18 Guns 4 | . 2 . . 2 Cannons 29 | . . 7 13 9 AOE 12 | . 2 3 . 7 Classes Destroyed 11 | . 3 1 1 6 Worker 2 | . . . . 2 Builder 1 | . . . . 1 Recycler 2 | . 2 . . . Watcher 2 | . 1 . . 1 Swarmer 10 | . . 3 3 4 Grunt 19 | . 4 7 . 8 Duelist 1 | . . . . 1 Sentry 2 | . . . . 2 Specialist 2 | . . . . 2 Heavy 1 | . . . . 1 Subdweller 10 | . . . 10 . Thug 1 | . . . 1 . Best Kill Streak 7 | . 3 3 5 7 Combat Bots Only 5 | . 2 3 5 5 Max Kills in Single Turn 2 | . 2 2 1 2 Gunslinging . | . . . . . Exploded 2 | . 2 2 . 1 Melee . | . . . . . Uniques/NPCs Destroyed . | . . . . . Combat | -11 -10 -10 -10 -8 -------- Run | Yrd Mat Min Sub Mat Hostile Shots Fired 203 | . 22 21 44 116 Missed 61 | . 3 11 13 34 Damage Taken 2881 | . 273 121 646 1841 Core 681 | . 56 10 59 556 Absorbed by Shields . | . . . . . Core Remaining (%) 75 | 100 . . 50 . Volleys Fired 153 | . 41 21 42 49 Largest 3 | . 2 2 2 3 Hottest 130 | . 53 79 83 130 Shots Fired 271 | . 72 39 81 79 Gun 81 | . 68 5 . 8 Cannon 159 | . . 30 77 52 Launcher 31 | . 4 4 4 19 Special . | . . . . . Kinetic 232 | . 68 35 77 52 Thermal 8 | . . . . 8 Explosive 31 | . 4 4 4 19 Electromagnetic . | . . . . . Robot Hit Streak 9 | . 9 4 8 8 Robot Miss Streak 7 | . 5 5 6 7 Penetration Max . | . . . . . Secondary Targets 1 | . 1 . . . Max Gunslinging Chain 1 | . 1 . . . Shots Hit Robots 167 | . 33 23 58 53 Core Hits 121 | . 16 21 38 46 Critical Kills . | . . . . . Critical Parts Destroyed . | . . . . . Critical Strikes 5 | . . . 2 3 Burn 2 | . . . . 2 Blast 3 | . . . 2 1 Melee Attacks . | . . . . . Impact . | . . . . . Slashing . | . . . . . Piercing . | . . . . . Sneak Attacks . | . . . . . Combat Hostiles . | . . . . . Follow-up Attacks . | . . . . . Damage Inflicted 4405 | . 424 569 1217 2195 Guns 357 | . 249 9 . 99 Cannons 2460 | . . 412 1217 831 Explosions 1584 | . 172 147 . 1265 Melee . | . . . . . Ramming 4 | . 3 1 . . Kinetic 2718 | . 249 421 1217 831 Thermal 99 | . . . . 99 Explosive 1584 | . 172 147 . 1265 Electromagnetic . | . . . . . Impact . | . . . . . Slashing . | . . . . . Piercing . | . . . . . Highest Corruption 2 | . 2 2 2 . Average Corruption 1 | . 1 2 2 . Corruption Purged . | . . . . . Corruption Blocked . | . . . . . Effects 41 | . 6 21 14 . Message Errors 6 | . 1 3 2 . Matter Fused 10 | . 2 5 3 . Heat Flow Errors 5 | . . 4 1 . Energy Discharges 6 | . 1 4 1 . Parts Fused 1 | . . . 1 . Data Loss (minor) 8 | . . 3 5 . Data Loss (major) 1 | . . . 1 . Misfires 2 | . 1 1 . . Alerts 1 | . . 1 . . Weapon Failures 1 | . 1 . . . Overload Shots . | . . . . . Overflow Damage 101 | . 38 15 . 48 Projectiles 22 | . . 15 . 7 Explosions 79 | . 38 . . 41 Melee . | . . . . . Knockbacks 22 | . . 6 9 7 Impact . | . . . . . Kinetic 21 | . . 6 9 6 Secondary 1 | . . . . 1 Self-Inflicted Damage 123 | . . . 87 36 Shots 4 | . . . 3 1 Rammed 2 | . 1 1 . . Targets Rammed 3 | . 2 1 . . Kicked . | . . . . . Crushed 1 | . 1 . . . Highest Temperature 263 | . 34 263 112 120 Average Temperature 54 | . 14 76 73 26 Received Heat Transfer 657 | . 153 75 78 351 Siege Activations . | . . . . . Robots Corrupted . | . . . . . Combat Hostiles . | . . . . . Parts Fried . | . . . . . Impact Corruptions . | . . . . . Robots Melted . | . . . . . Combat Hostiles . | . . . . . Parts Melted 1 | . . . . 1 Heat Transferred 370 | . . . . 370 Parts Sabotaged . | . . . . . Parts Stolen . | . . . . . Parts Stripped . | . . . . . Power Chain Reactions . | . . . . . Alert | -11 -10 -10 -10 -8 ------- Run | Yrd Mat Min Sub Mat Peak Influence 443 | . 177 164 . 443 Initial 10 | . . 10 . . Average 92 | . 40 76 . 222 Maximum Alert Level 2 | . . . . 2 Low Security (%) 87 | 100 100 100 . 34 Level 1 11 | . . . . 57 Level 2 1 | . . . . 7 Level 3 . | . . . . . Level 4 . | . . . . . Level 5 . | . . . . . High Security . | . . . . . Max Security . | . . . . . Squads Dispatched 6 | . 1 1 . 4 Investigation 1 | . . 1 . . Extermination . | . . . . . Reinforcement 5 | . 1 . . 4 Assault . | . . . . . Garrison . | . . . . . Intercept . | . . . . . Searches Triggered . | . . . . . Construction Impeded 1 | . . . . 1 Haulers Reinforced . | . . . . . Active Scanning Responses . | . . . . . Cargo Convoy Interrupts . | . . . . . Stealth | -11 -10 -10 -10 -8 --------- Run | Yrd Mat Min Sub Mat Distress Signals 1 | . . . . 1 Communications Jammed . | . . . . . Distress Signals . | . . . . . Times Spotted 55 | . 8 9 15 23 Peak Tracking Total 5 | . 2 3 5 5 Tactical Retreats . | . . . . . Traps | -11 -10 -10 -10 -8 ------- Run | Yrd Mat Min Sub Mat Traps Triggered . | . . . . . Indirectly . | . . . . . Trap Hack Attempts . | . . . . . Triggered . | . . . . . Disarmed . | . . . . . Reprogrammed . | . . . . . Reused . | . . . . . Traps Extracted . | . . . . . Installed . | . . . . . Triggered 1 | . . 1 . . Machines | -11 -10 -10 -10 -8 ---------- Run | Yrd Mat Min Sub Mat Machines Disabled 5 | . 2 2 . 1 Max in Single Turn 2 | . 1 2 . 1 Machines Repaired . | . . . . . Machines Dismantled . | . . . . . Machines Sabotaged . | . . . . . Overloaded Fab Kills . | . . . . . Hacking | -11 -10 -10 -10 -8 --------- Run | Yrd Mat Min Sub Mat Machines Accessed 10 | . 6 1 . 3 Terminals 8 | . 5 . . 3 Fabricators . | . . . . . Repair Stations . | . . . . . Recycling Units 1 | . 1 . . . Scanalyzers . | . . . . . Garrison Access . | . . . . . Total Hacks 20 | . 13 1 . 6 Successful 9 | . 4 1 . 4 Failed 11 | . 9 . . 2 Catastrophic 5 | . 5 . . . Database Lockouts . | . . . . . Manual 7 | . 7 . . . Terminals 17 | . 11 . . 6 Fabricators . | . . . . . Repair Stations . | . . . . . Recycling Units 2 | . 2 . . . Scanalyzers . | . . . . . Garrison Access . | . . . . . Terminal Hacks 8 | . 3 1 . 4 Open Door 1 | . . 1 . . Branch Access Points 2 | . 1 . . 1 Emergency Access Points 1 | . . . . 1 Terminal Index 1 | . 1 . . . Alert Level 2 | . . . . 2 Zone Layout 1 | . 1 . . . Fabricator Hacks . | . . . . . Repair Station Hacks . | . . . . . Recycling Unit Hacks 1 | . 1 . . . Report Inventory 1 | . 1 . . . Scanalyzer . | . . . . . Garrison Access Hacks . | . . . . . Unauthorized Hacks . | . . . . . Terminals . | . . . . . Fabricators . | . . . . . Repair Stations . | . . . . . Recycling Units . | . . . . . Scanalyzers . | . . . . . Garrison Access . | . . . . . Data Cores Recovered . | . . . . . Used . | . . . . . Hacking Detections 7 | . 5 . . 2 Full Trace Events 3 | . 3 . . . Feedback Events 2 | . 2 . . . Corruption 2 | . 2 . . . Feedback Blocked . | . . . . . Robot Schematics Acquired . | . . . . . Robots Built . | . . . . . Authchips . | . . . . . Time . | . . . . . Total Robot Build Rating . | . . . . . Part Schematics Acquired . | . . . . . Parts Built . | . . . . . Authchips . | . . . . . Time . | . . . . . Total Part Build Rating . | . . . . . Parts Repaired . | . . . . . Time . | . . . . . Parts Recycled . | . . . . . Recycled Matter . | . . . . . Retrieved Matter . | . . . . . Retrieved Components . | . . . . . Parts Scanalyzed . | . . . . . Part Schematics Acquired . | . . . . . Parts Damaged . | . . . . . Bothacking | -11 -10 -10 -10 -8 ------------ Run | Yrd Mat Min Sub Mat Used RIF Installer . | . . . . . Robots Hacked . | . . . . . Non-combat . | . . . . . Combat . | . . . . . Robot Hacks Applied . | . . . . . Relay Couplers Released . | . . . . . Fabnet Peak Effective % . | . . . . . Robots Rewired . | . . . . . Allies Hacked . | . . . . . Hacks Repelled . | . . . . . Allies | -11 -10 -10 -10 -8 -------- Run | Yrd Mat Min Sub Mat Total Allies . | . . . . . Largest Group . | . . . . . Highest-Rated Group . | . . . . . Highest-Rated Ally . | . . . . . Total Orders . | . . . . . Ally Attacks . | . . . . . Total Damage . | . . . . . Kills . | . . . . . Allies Corrupted . | . . . . . Allies Melted . | . . . . . Intel | -11 -10 -10 -10 -8 ------- Run | Yrd Mat Min Sub Mat Robot Analysis Total . | . . . . . Derelict Logs Recovered 1 | . . 1 . . Drone Launches . | . . . . . Drone Recoveries . | . . . . . Exploration | -11 -10 -10 -10 -8 ------------- Run | Yrd Mat Min Sub Mat Turns Passed 3750 | 91 825 1321 964 549 Spaces Moved 2150 | 51 445 746 647 261 Core 24 | 4 . . 1 19 Treads 1292 | 47 445 746 54 . Legs 826 | . . . 592 234 Wheels 8 | . . . . 8 Hover . | . . . . . Flight . | . . . . . Fastest Speed 50 | 50 160 160 120 110 Average Speed 147 | 154 160 160 123 146 Slowest Speed 500 | 160 160 160 350 500 Overloaded Moves . | . . . . . Propulsion Burnouts . | . . . . . Robots Hopped . | . . . . . Cave-ins Triggered . | . . . . . Exploration Rate (%) 45 | 6 57 99 35 31 Regions Visited 4 Branch Regions 2 Pre-discovered Areas . | . . . . . Known Exits Taken 2 | . 1 1 . . Unknown Exits Taken 2 | 1 . . 1 . Scrap Searched 9 | . . 2 7 . Spaces Dug 32 | . . 14 18 . Terrain Destroyed 209 | . 18 35 28 128 Melee . | . . . . . Projectile 6 | . . . . 6 AOE 203 | . 18 35 28 122 Terrain Rammed . | . . . . . Walls Destroyed . | . . . . . Machines Disabled . | . . . . . Actions | -11 -10 -10 -10 -8 --------- Run | Yrd Mat Min Sub Mat Total 2470 | 60 498 836 732 344 Wait 76 | . 5 57 12 2 Move 2146 | 50 444 745 646 261 Hop . | . . . . . Pick Up 25 | 4 4 4 5 8 Fast Attach 22 | 6 1 . 5 10 Attach 9 | . . . 1 8 Detach 4 | . . . 4 . Swap 14 | . 1 4 3 6 Drop 16 | . . 4 12 . Fire 153 | . 41 21 42 49 Melee . | . . . . . Ram . | . . . . . Kick . | . . . . . Crush 3 | . 2 1 . . Escape Stasis . | . . . . . Rewire . | . . . . . Trap . | . . . . . Miscellaneous 2 | . . . 2 . Route ------- -11/Scrapyard -10/Materials (discovered 3 exits: *Mat x2 / *Min) -10/Mines (discovered 3 exits: *Mat x2 / *Sub) -10/Subcaves (discovered 2 exits: *Mat x2) -8/Materials (discovered 3 exits: [*Fac] / Sto x2) History --------- Turn | Location | Event 11 | -11/Scrapyard | Discovered new exit (range 15) 92 | -11/Scrapyard | Entered Materials 243 | -10/Materials | Discovered new exit (range 14) 302 | -10/Materials | Build established: Mutant 391 | -10/Materials | Identified exit to Materials 440 | -10/Materials | Discovered new exit (range 16) 466 | -10/Materials | Identified exit to Mines 861 | -10/Materials | Discovered exit to Materials (range 11) 917 | -10/Materials | Entered Mines 1018 | -10/Mines | Discovered exit to Materials (range 15) 1313 | -10/Mines | Received a Rocket Launcher from a helpful Derelict 1341 | -10/Mines | Met a Derelict shopkeep closing up shop 1420 | -10/Mines | Learned location of 1 exit from Materials 1759 | -10/Mines | Discovered exit to Materials (range 8) 1794 | -10/Mines | Found a damaged Exp. Sensor Array with a note attached 1798 | -10/Mines | Found Prototype Device 2070 | -10/Mines | Discovered new exit (range 6) 2081 | -10/Mines | Identified exit to Subcaves 2238 | -10/Mines | Entered Subcaves 2337 | -10/Subcaves | Ambushed by swarm of Subdwellers 2400 | -10/Subcaves | Lost 4 allies 2611 | -10/Subcaves | A swath of the cavern ceiling suddenly collapsed 2787 | -10/Subcaves | Disturbed a concealed Subdweller 2920 | -10/Subcaves | Disturbed a concealed Subdweller 3015 | -10/Subcaves | Discovered new exit (range 8) 3120 | -10/Subcaves | Shifting Twisted Machinery released Sub. Laser 3146 | -10/Subcaves | Discovered new exit (range 4) 3202 | -10/Subcaves | Entered Materials 3202 | -8/Materials | Evolved 4 slots: Propulsion x1, Utility x2, Weapon x1 3203 | -8/Materials | Identified exit to Storage 3589 | -8/Materials | Discovered new exit (range 13) 3613 | -8/Materials | Core integrity fell below 50% 3707 | -8/Materials | Lost 13 parts (2p2n2u7w) 3720 | -8/Materials | Core integrity fell below 20% 3751 | -8/Materials | Destroyed by G-47 Trooper with Particle Gun Last Messages --------------- 03728_ U-05 Engineer builds a Wall. 03729_ U-05 Engineer lays Concrete. 03730_ U-05 Engineer builds a Wall. 03735_ Acquired Wheel. 03735_ U-05 Engineer lays Concrete. 03736_ U-05 Engineer builds a Wall. 03740_ Acquired 43 matter. 03740_ U-05 Engineer lays Concrete. 03742_ Acquired Lgt. Nuclear Core. 03742_ U-05 Engineer builds a Wall. 03743_ U-05 Engineer lays Concrete. 03744_ U-05 Engineer builds a Wall. 03746_ Acquired Pulse Rifle. 03746_ U-05 Engineer lays Concrete. 03748_ Acquired Imp. Carbon-fiber Leg. 03748_ U-05 Engineer lays Concrete. 03750_ U-05 Engineer builds a Wall. 03750_ Acquired 37 matter. 03750_ U-05 Engineer builds a Wall. [Achievement: Achiever] Map ----- +----------------------------------------------------+ | ???????????????????????????? | | ???????????????????????????? | | ???????????????????????????# | | ???????????????????????????# | | ???????????????????????????# | | ???????????????????????????# | | ???????????????????????????# | | ???????????????????######### | | ???????????????????# # | | ?????????????####### " # | | ?????????????# # """ # | | ?????????????# # "" # | | ????########## + """ *# | | ????# # # "" # % | | ????# # # """ # | | ????# ## ## """ # | | ????# === ## T# """ # | | ????# === ## ## " ## # | | ????# === ## ## # | | ????# ## ########## # | | ????#] ## ##??????# | | ??### % ;#???#### | | ??# ######+### #####"## | | ??# %=%= u % g = # | | ?? # ! g + | | # @ u g " | | # ####### % ###### # ] | | # # # #####""#???? # ] | | ??# < # # ## ######???? # ] | | ??# #??##?????????? ##+## | | ??#### ###??????????????? ???? | | ?????###????????????????? ???? | | ?????????????????????????? ???? | | ?????????????????????????? ??? | | ?????????????????????????? ??? | | ??????????????????????????##??? | | ??????????????????????????????? | | ??????????????????????????????? | | ??????????????????????????????? | | ??????????????????????????????? | | ??????????????????????????????? | | ??????????????????????????????? | | ??????????????????????????????? | | | | | | | | | | | | | | | +----------------------------------------------------+ Best States ------------- Heat Dissipation 41 Energy Generation 14 Energy Capacity 450 Matter Stores 300 Matter Capacity 300 Sight Range 16 Terrain Scan Density 10 Armor Coverage 800 Evasion (%) 55 Recoil Reduction 4 Item Schematics ----------------- None Robot Schematics ------------------ None Fabricated ------------ Nothing Alien Tech Used ----------------- None Achievements -------------- Achiever Maybe Next Time I'll Detach My Launcher Challenges ------------ None Game ------ Seed TargetAerolevScanner Manual? 0 Play Time 00:40:27 Cumulative 14.5 hours Start 2024.04.04 @ 20:33:57 End 2024.04.05 @ 12:08:48 Sessions 3 Manual Loads 0 Difficulty Rogue Special Mode None Game No. 30 Rogue 17 Adventurer 8 Explorer 5 Win Type - Total 0 Types 0/0/0/0/0/0/0/0/0 Lore% 13 Gallery% 24 Achievement% 25 Wizard Run 0 Options --------- Layout 0 ASCII 0 Keyboard 1 Movement Arrows Keybinds 0 Fullscreen 1 Font 18/SmallcapsGlow Map View 76x50 Zoom Use 19% Tactical HUD 1 Map Filters NONE Filters NONE Steam 1 RUN: 1afc271e-b3d5-4972-9be5-001f5cd2a91e